fUST/lending_fUST_20250809
["ID","MTS","AMOUNT","RATE_DAILY","PERIOD"]
[378079284,1754717481751,-1447.77,0.00026849,2]
[378079285,1754717481761,-500.75,0.00026849,2]
[378079286,1754717481771,-460.0,0.00026849,2]
[378079287,1754717481781,-672.29,0.00026849,2]
[378079288,1754717481792,-1699.23,0.00026849,2]
[378079289,1754717481802,-520.08,0.00026849,2]
[378079290,1754717481811,-889.0,0.00026849,2]
[378079291,1754717481821,-3585.3,0.00026849,2]
[378079292,1754717481831,-607.44,0.00026849,2]
[378079293,1754717481840,-500.0,0.0002685,2]
[378079294,1754717481850,-500.0,0.0002685,2]
[378079295,1754717481859,-151.0,0.0002685,2]
[378079296,1754717481869,-151.0,0.0002685,2]
[378079297,1754717481878,-660.0,0.00026868,2]
[378079298,1754717481887,-1000.0,0.00026871,2]
[378079299,1754717481898,-1560.34,0.00026894,7]
[378079300,1754717481907,-259.67,0.00026894,7]
[378079301,1754717481917,-8230.62948225,0.00026918,6]
[378079302,1754717481927,-10408.94274891,0.00027,2]
[378079303,1754717481936,-18521.0,0.00027,2]
[378079304,1754717481945,-21640.95362827,0.00027,7]
[378079305,1754717482182,-460.0,0.00021917,2]
[378079306,1754717482193,-461.55117592,0.00021917,2]
[378079307,1754717482203,-151.0,0.00021926,2]
[378079308,1754717482213,-151.0,0.00021926,2]
[378079309,1754717482224,-151.0,0.00021926,2]
[378079310,1754717482234,-460.0,0.00022191,2]
[378079311,1754717482244,-460.0,0.00022191,2]
[378079312,1754717482253,-520.64,0.00022465,2]
[378079313,1754717482263,-460.0,0.00022465,2]
[378079314,1754717482273,-460.0,0.00022465,2]
[378079315,1754717482284,-520.64,0.00022739,2]
[378079316,1754717482293,-460.0,0.00022739,2]
[378079317,1754717482304,-460.0,0.00022739,2]
[378079318,1754717482314,-520.64,0.00023013,2]
[378079319,1754717482324,-460.0,0.00023013,2]
[378079320,1754717482333,-460.0,0.00023287,2]
[378079321,1754717482343,-520.64,0.00023287,2]
[378079322,1754717482353,-181.42882408,0.00023287,2]
[378079323,1754717482691,-460.0,0.00021917,2]
[378079324,1754717482700,-460.0,0.00022191,2]
[378079325,1754717482710,-460.0,0.00022191,2]
[378079326,1754717482719,-277.78772527,0.00022465,2]
[378079327,1754717482729,-460.0,0.00022465,2]
[378079328,1754717482739,-460.0,0.00022739,2]
[378079329,1754717482749,-278.57117592,0.00023287,2]
[378079330,1754717482760,-460.0,0.00023561,2]
[378079331,1754717482770,-520.64,0.00023561,2]
[378079332,1754717482779,-460.0,0.00023561,2]
[378079333,1754717482790,-460.0,0.00023835,2]
[378079334,1754717482800,-520.64,0.00023835,2]
[378079335,1754717482809,-460.0,0.00023835,2]
[378079336,1754717482819,-520.64,0.00024109,2]
[378079337,1754717482828,-460.0,0.00024109,2]
[378079338,1754717482841,-520.64,0.00024383,2]
[378079339,1754717482851,-460.0,0.00024383,2]
[378079340,1754717482862,-520.64,0.00024657,2]
[378079341,1754717482872,-460.0,0.00024657,2]
[378079342,1754717482883,-520.64,0.00024931,2]
[378079343,1754717482896,-460.0,0.00024931,2]
[378079344,1754717482908,-520.64,0.00025205,2]
[378079345,1754717482922,-460.0,0.00025205,2]
[378079346,1754717482932,-520.64,0.00025479,2]
[378079347,1754717482941,-460.0,0.00025479,2]
[378079348,1754717482951,-520.64,0.00025753,2]
[378079349,1754717482961,-520.64,0.00026027,2]
[378079350,1754717482971,-520.64,0.00026301,2]
[378079351,1754717482981,-520.64,0.00026575,2]
[378079352,1754717482990,-28359.04637173,0.00027,7]
[378079353,1754717483001,-50000.0,0.00027,15]
[378079354,1754717483011,-250.0,0.00027,7]
[378079355,1754717483020,-250.0,0.00027,7]
[378079356,1754717483030,-151.973005,0.00027,7]
[378079357,1754717483040,-151.883634,0.00027,7]
[378079358,1754717483049,-151.0,0.00027,7]
[378079359,1754717483058,-151.0,0.00027,7]
[378079360,1754717483067,-152.394121,0.00027,7]
[378079361,1754717483078,-205.267949,0.00027,7]
[378079362,1754717483089,-205.267949,0.00027,7]
[378079363,1754717483098,-461.55179734,0.00027,3]
[378079364,1754717483108,-215.40758176,0.00027,3]
[378079365,1754717483118,-160.0,0.00027,3]
[378079366,1754717483129,-160.0,0.00027104,5]
[378079367,1754717483139,-3687.5,0.00027123,2]
[378079368,1754717483148,-460.0,0.00027123,2]
[378079369,1754717483158,-632.83,0.00027123,2]
[378079370,1754717483168,-460.0,0.00027123,2]
[378079371,1754717483179,-151.0,0.00027123,7]
[378079372,1754717483189,-748.0,0.00027123,2]
[378079373,1754717483198,-503.24,0.00027123,2]
[378079374,1754717483208,-460.0,0.00027123,2]
[378079375,1754717483218,-460.0,0.00027123,2]
[378079376,1754717483228,-872.77,0.00027123,2]
[378079377,1754717483238,-623.59,0.00027123,2]
[378079378,1754717483247,-460.0,0.00027123,2]
[378079379,1754717483256,-460.0,0.00027123,2]
[378079380,1754717483265,-481.14,0.00027123,2]
[378079381,1754717483274,-1328.21,0.00027123,2]
[378079382,1754717483284,-548.91,0.00027123,2]
[378079383,1754717483294,-1419.17,0.00027123,2]
[378079384,1754717483303,-460.0,0.00027123,2]
[378079385,1754717483313,-460.0,0.00027123,2]
[378079386,1754717483324,-1181.72,0.00027123,2]
[378079387,1754717483334,-813.16,0.00027123,2]
[378079388,1754717483343,-622.45,0.00027123,2]
[378079389,1754717483353,-779.99,0.00027123,2]
[378079390,1754717483362,-1619.97,0.00027123,2]
[378079391,1754717483372,-366.62,0.00027123,2]
[378079392,1754717483382,-1148.8,0.00027123,2]
[378079393,1754717483392,-1244.78,0.00027123,2]
[378079394,1754717483402,-2519.37,0.00027123,2]
[378079395,1754717483412,-503.86,0.00027123,2]
[378079396,1754717483421,-603.35,0.00027123,2]
[378079397,1754717483430,-638.61,0.00027123,2]
[378079398,1754717483440,-710.26,0.00027123,2]
[378079399,1754717483449,-727.66,0.00027123,2]
[378079400,1754717483459,-380.79507103,0.00027123,2]
[378079401,1754717483468,-5453.14,0.00027123,2]
[378079402,1754717483478,-2213.25,0.00027123,2]
[378079403,1754717483669,-2392.79,0.00027123,2]
[378079404,1754717483679,-1847.54,0.00027123,2]
[378079405,1754717483690,-786.49,0.00027123,2]
[378079406,1754717483699,-460.0,0.00027123,2]
[378079407,1754717483709,-915.76,0.00027123,2]
[378079408,1754717483719,-151.0,0.00027123,7]
[378079409,1754717483728,-466.57,0.00027123,2]
[378079410,1754717483738,-542.22,0.00027123,2]
[378079411,1754717483748,-460.0,0.00027123,2]
[378079412,1754717483759,-533.05,0.00027123,2]
[378079413,1754717483768,-557.41,0.00027123,2]
[378079414,1754717483778,-460.0,0.00027123,2]
[378079415,1754717483788,-1807.89,0.00027123,2]
[378079416,1754717483797,-211.274078,0.00027123,7]
[378079417,1754717483807,-1773.57,0.00027123,2]
[378079418,1754717483817,-1299.54,0.00027123,2]
[378079419,1754717483826,-460.0,0.00027123,2]
[378079420,1754717483837,-211.274078,0.00027123,7]
[378079421,1754717483846,-726.66,0.00027123,2]
[378079422,1754717483856,-649.7,0.00027123,2]
[378079423,1754717483866,-1110.73,0.00027123,2]
[378079424,1754717483875,-971.96,0.00027123,2]
[378079425,1754717483885,-1447.77,0.00027123,2]
[378079426,1754717483895,-500.75,0.00027123,2]
[378079427,1754717483905,-460.0,0.00027123,2]
[378079428,1754717483915,-672.29,0.00027123,2]
[378079429,1754717483926,-1699.23,0.00027123,2]
[378079430,1754717483935,-520.08,0.00027123,2]
[378079431,1754717483945,-889.0,0.00027123,2]
[378079432,1754717483956,-3585.3,0.00027123,2]
[378079433,1754717483965,-607.44,0.00027123,2]
[378079434,1754717483975,-500.0,0.00027124,2]
[378079435,1754717483985,-432.35352861,0.00027124,2]
[378079436,1754717483994,-151.0,0.00027124,2]
[378079437,1754717484004,-200.0859835,0.00027124,2]
[378079438,1754717484013,-5000.0,0.00027164,2]
[378079439,1754717484022,-151.0,0.00027164,7]
[378079440,1754717484030,-151.0,0.00027164,7]
[378079441,1754717484040,-151.0,0.00027164,7]
[378079442,1754717484049,-151.0,0.00027164,7]
[378079443,1754717484058,-151.0,0.00027164,7]
[378079444,1754717484069,-151.0,0.00027164,7]
[378079445,1754717484079,-151.0,0.00027164,7]
[378079446,1754717484090,-151.0,0.00027164,7]
[378079447,1754717484100,-151.0,0.00027164,7]
[378079448,1754717484110,-157.0,0.00027185,7]
[378079449,1754717484120,-15000.0,0.000273,7]
[378079450,1754717484128,-151.0,0.000273,7]
[378079451,1754717484138,-151.0,0.000273,7]
[378079452,1754717484149,-194.391332,0.000273,7]
[378079453,1754717484158,-194.391332,0.000273,7]
[378079454,1754717484169,-151.0,0.000273,7]
[378079455,1754717484179,-151.0,0.000273,7]
[378079456,1754717484188,-313.966754,0.000273,7]
[378079457,1754717484198,-313.966754,0.000273,7]
[378079458,1754717484207,-319.152472,0.000273,7]
[378079459,1754717484216,-319.152472,0.000273,7]
[378079460,1754717484226,-196.81447832,0.0002739,2]
[378079461,1754717484235,-3687.5,0.00027397,2]
[378079462,1754717484245,-460.0,0.00027397,2]
[378079463,1754717484254,-632.83,0.00027397,2]
[378079464,1754717484263,-460.0,0.00027397,2]
[378079465,1754717484272,-748.0,0.00027397,2]
[378079466,1754717484282,-503.24,0.00027397,2]
[378079467,1754717484291,-460.0,0.00027397,2]
[378079468,1754717484301,-1000.0,0.00027397,5]
[378079469,1754717484310,-1000.0,0.00027397,5]
[378079470,1754717484320,-1000.0,0.00027397,5]
[378079471,1754717484330,-1000.0,0.00027397,5]
[378079472,1754717484341,-1000.0,0.00027397,5]
[378079473,1754717484350,-395.88121819,0.00027397,5]
[378079474,1754717484359,-460.0,0.00027397,2]
[378079475,1754717484369,-198.724542,0.00027397,7]
[378079476,1754717484379,-872.77,0.00027397,2]
[378079477,1754717484388,-151.0,0.00027397,7]
[378079478,1754717484397,-151.0,0.00027397,7]
[378079479,1754717484406,-151.0,0.00027397,7]
[378079480,1754717484416,-623.59,0.00027397,2]
[378079481,1754717484425,-244.31258,0.00027397,7]
[378079482,1754717484435,-460.0,0.00027397,2]
[378079483,1754717484446,-481.14,0.00027397,2]
[378079484,1754717484455,-1328.21,0.00027397,2]
[378079485,1754717484465,-789.721827,0.00027397,7]
[378079486,1754717484475,-789.721827,0.00027397,7]
[378079487,1754717484485,-548.91,0.00027397,2]
[378079488,1754717484495,-1419.17,0.00027397,2]
[378079489,1754717484505,-460.0,0.00027397,2]
[378079490,1754717484515,-287.80212667,0.00027397,2]
[378079491,1754717484525,-1181.72,0.00027397,2]
[378079492,1754717484537,-3145.56,0.00027397,6]
[378079493,1754717484547,-813.16,0.00027397,2]
[378079494,1754717484557,-622.45,0.00027397,2]
[378079495,1754717484566,-779.99,0.00027397,2]
[378079496,1754717484576,-1619.97,0.00027397,2]
[378079497,1754717484587,-1148.8,0.00027397,2]
[378079498,1754717484597,-1244.78,0.00027397,2]
[378079499,1754717484606,-2519.37,0.00027397,2]
[378079500,1754717484616,-503.86,0.00027397,2]
[378079501,1754717484626,-603.35,0.00027397,2]
[378079502,1754717484636,-638.61,0.00027397,2]
[378079503,1754717484647,-710.26,0.00027397,2]
[378079504,1754717484656,-727.66,0.00027397,2]
[378079505,1754717484665,-5453.14,0.00027397,2]
[378079506,1754717484674,-2213.25,0.00027397,2]
[378079507,1754717484684,-2392.79,0.00027397,2]
[378079508,1754717484694,-1847.54,0.00027397,2]
[378079509,1754717484705,-786.49,0.00027397,2]
[378079510,1754717484715,-293.13203086,0.00027397,2]
[378079511,1754717484726,-915.76,0.00027397,2]
[378079512,1754717484736,-466.57,0.00027397,2]
[378079513,1754717484745,-542.22,0.00027397,2]
[378079514,1754717484754,-460.0,0.00027397,2]
[378079515,1754717484764,-533.05,0.00027397,2]
[378079516,1754717484774,-557.41,0.00027397,2]
[378079517,1754717484783,-460.0,0.00027397,2]
[378079518,1754717484793,-1807.89,0.00027397,2]
[378079519,1754717484802,-1773.57,0.00027397,2]
[378079520,1754717484812,-1299.54,0.00027397,2]
[378079521,1754717484821,-323.50083975,0.00027397,2]
[378079522,1754717484832,-726.66,0.00027397,2]
[378079523,1754717484842,-649.7,0.00027397,2]
[378079524,1754717484851,-1110.73,0.00027397,2]
[378079525,1754717484861,-971.96,0.00027397,2]
[378079526,1754717484870,-1447.77,0.00027397,2]
[378079527,1754717484879,-500.75,0.00027397,2]
[378079528,1754717484889,-184.9931898,0.00027397,2]
[378079529,1754717484899,-672.29,0.00027397,2]
[378079530,1754717484909,-1699.23,0.00027397,2]
[378079531,1754717484919,-520.08,0.00027397,2]
[378079532,1754717484929,-889.0,0.00027397,2]
[378079533,1754717484939,-3585.3,0.00027397,2]
[378079534,1754717484949,-607.44,0.00027397,2]
[378079535,1754717484960,-1010.013,0.00027397,2]
[378079536,1754717484970,-500.0,0.00027397,5]
[378079537,1754717484980,-500.0,0.00027397,5]
[378079538,1754717484990,-500.0,0.00027397,5]
[378079539,1754717484999,-500.0,0.00027398,2]
[378079540,1754717485009,-760.0,0.00027416,2]
[378079541,1754717485019,-150.0,0.00027473,5]
[378079542,1754717485028,-4000.0,0.000275,2]
[378079543,1754717485046,-45142.35801317,0.000275,2]
[378079544,1754717485066,-1477.69862104,0.000275,4]
[378079545,1754717485076,-11098.42714281,0.000275,2]
[378079546,1754717485086,-160.0,0.00027578,6]
[378079547,1754717485096,-3687.5,0.00027671,2]
[378079548,1754717485105,-284.83654213,0.00027671,2]
[378079549,1754717485115,-151.0,0.00027671,7]
[378079550,1754717485124,-151.0,0.00027671,7]
[378079551,1754717485133,-632.83,0.00027671,2]
[378079552,1754717485143,-260.2820969,0.00027671,2]
[378079553,1754717485152,-748.0,0.00027671,2]
[378079554,1754717485161,-503.24,0.00027671,2]
[378079555,1754717485171,-460.0,0.00027671,2]
[378079556,1754717485180,-460.0,0.00027671,2]
[378079557,1754717485190,-872.77,0.00027671,2]
[378079558,1754717485199,-623.59,0.00027671,2]
[378079559,1754717485209,-460.0,0.00027671,2]
[378079560,1754717485219,-481.14,0.00027671,2]
[378079561,1754717485228,-1111.96980215,0.00027671,2]
[378079562,1754717485441,-460.0,0.00021917,2]
[378079563,1754717485451,-460.0,0.00021917,2]
[378079564,1754717485460,-460.0,0.00021917,2]
[378079565,1754717485469,-460.0,0.00021917,2]
[378079566,1754717485479,-460.0,0.00021917,2]
[378079567,1754717485488,-460.0,0.00021917,2]
[378079568,1754717485498,-346.75,0.00022,2]
[378079569,1754717485507,-460.0,0.00022191,2]
[378079570,1754717485516,-460.0,0.00022191,2]
[378079571,1754717485525,-472.36553321,0.00022191,2]
[378079572,1754717485535,-460.0,0.00022465,2]
[378079573,1754717485551,-598.37676096,0.00022465,2]
[378079574,1754717485560,-460.0,0.00022739,2]
[378079575,1754717485569,-460.0,0.00023013,2]
[378079576,1754717485579,-346.75,0.00023224,2]
[378079577,1754717485591,-460.0,0.00023287,2]
[378079578,1754717485601,-460.0,0.00023561,2]
[378079579,1754717485611,-460.0,0.00023835,2]
[378079580,1754717485621,-460.0,0.00024109,2]
[378079581,1754717485631,-346.75,0.00024447,2]
[378079582,1754717485640,-460.0,0.00025753,2]
[378079583,1754717485650,-460.0,0.00026027,2]
[378079584,1754717485658,-460.0,0.00026301,2]
[378079585,1754717485668,-520.64,0.00026849,2]
[378079586,1754717485677,-520.64,0.00027123,2]
[378079587,1754717485686,-520.64,0.00027397,2]
[378079588,1754717485696,-216.24019785,0.00027671,2]
[378079589,1754717485706,-548.91,0.00027671,2]
[378079590,1754717485715,-1419.17,0.00027671,2]
[378079591,1754717485725,-1181.72,0.00027671,2]
[378079592,1754717485734,-813.16,0.00027671,2]
[378079593,1754717485743,-32.13749311,0.00027671,2]
[378079594,1754717489142,387.13400143,0.00021259,2]
[378079595,1754717493677,5034.15152,0.00031789,30]
[378079598,1754717559851,14788.41844065,0.00021105,2]
[378079599,1754717559875,10111.58155935,0.00021105,2]
[378079600,1754717562883,666.0,0.00021105,2]
[378079601,1754717579352,328.843378,0.00013699,2]
[378079602,1754717579612,328.843378,0.00020187,2]
[378079603,1754717579957,-157.673782,0.00021458,2]
[378079605,1754717746233,-177.36082434,0.00021606,2]
[378079606,1754717777681,231.162725,0.00020764,2]
[378079607,1754717780094,232.28040086,0.00021056,2]
[378079608,1754717806175,7407.93926064,0.000199,2]
[378079609,1754717942251,1000.0,0.0002,5]
[378079610,1754717994683,7160.9845531,0.000199,2]
[378079612,1754718189830,4832.36474505,0.000199,2]
[378079613,1754718189858,2364.17768868,0.000199,2]
[378079615,1754718290416,1000.0,0.00020702,2]
[378079616,1754718358673,10000.0,0.00020721,2]
[378079617,1754718375309,7901.74862185,0.000199,2]
[378079618,1754718519500,11034.07368947,0.00020703,2]
[378079619,1754718519524,13865.92631053,0.00020703,2]
[378079620,1754718521372,-189.49405022,0.00021572,2]
[378079621,1754718523810,664.24691349,0.000189,2]
[378079622,1754718535609,157.6737828,0.00020704,2]
[378079623,1754718555930,7638.35700117,0.000199,2]
[378079624,1754718581344,-159.33012639,0.00021573,2]
[378079625,1754718582962,-18.03069798,0.00021573,2]
[378079688,1754718632233,-4352.17612679,0.00021655,2]
[378079693,1754718632293,-3286.18087433,0.00021655,2]
[378079696,1754718632302,-300.0,0.00021672,2]
[378079698,1754718632312,-3239.95481197,0.00021673,2]
[378079700,1754718632323,-659.56344586,0.00021673,2]
[378079704,1754718632351,-3709.26670419,0.00021673,2]
[378079706,1754718632363,-8841.46164672,0.00021673,2]
[378080072,1754718636110,577.3721016,0.00020764,2]
[378080227,1754718638215,-1511.00347957,0.00021673,2]
[378080229,1754718638225,-161.89,0.00021697,3]
[378080231,1754718638235,-566.6,0.00021697,3]
[378080233,1754718638248,-283.3,0.00021697,3]
[378080235,1754718638258,-849.95,0.00021697,3]
[378080237,1754718638268,-877.79,0.00021697,10]
[378080239,1754718638277,-1152.23442938,0.00021706,2]
[378080241,1754718638287,-584.83247022,0.00021706,2]
[378080243,1754718638296,-717.40232077,0.00021706,2]
[378080245,1754718638305,-717.40232077,0.00021706,2]
[378080247,1754718638315,-717.40232077,0.00021706,2]
[378080250,1754718638334,-717.40232077,0.00021706,2]
[378080252,1754718638344,-717.40232077,0.00021706,2]
[378080255,1754718638358,-717.40232077,0.00021706,2]
[378080257,1754718638367,-717.40232077,0.00021706,2]
[378080259,1754718638376,-717.40232077,0.00021706,2]
[378080261,1754718638386,-717.40232077,0.00021706,2]
[378080263,1754718638396,-717.40232077,0.00021706,2]
[378080265,1754718638406,-717.40232077,0.00021706,2]
[378080267,1754718638415,-717.40232077,0.00021706,2]
[378080269,1754718638424,-717.40232077,0.00021706,2]
[378080271,1754718638434,-717.40232077,0.00021706,2]
[378080273,1754718638443,-280.31645202,0.00021706,2]
[378080275,1754718638453,-225.0,0.00021706,2]
[378080277,1754718638463,-500.0,0.00021706,2]
[378080279,1754718638472,-500.0,0.00021706,2]
[378080281,1754718638482,-553.56004349,0.00021706,2]
[378080283,1754718638491,-155.54260979,0.00021706,2]
[378080285,1754718638501,-313.04050512,0.00021706,2]
[378080288,1754718638510,-737.89952994,0.00021706,2]
[378080290,1754718638519,-737.89952994,0.00021706,2]
[378080292,1754718638529,-737.89952994,0.00021706,2]
[378080294,1754718638538,-737.89952994,0.00021706,2]
[378080296,1754718638547,-737.89952994,0.00021706,2]
[378080298,1754718638556,-737.89952994,0.00021706,2]
[378080299,1754718638565,-737.89952994,0.00021706,2]
[378080301,1754718638575,-719.09032624,0.00021706,2]
[378080304,1754718638584,-719.09032624,0.00021706,2]
[378080306,1754718638594,-719.09032624,0.00021706,2]
[378080308,1754718638604,-719.09032624,0.00021706,2]
[378080310,1754718638614,-719.09032624,0.00021706,2]
[378080312,1754718638623,-719.09032624,0.00021706,2]
[378080313,1754718638634,-342067.40039508,0.00021707,2]
[378080315,1754718638647,-500.0,0.00021773,2]
[378080317,1754718638656,-500.0,0.00021773,2]
[378080319,1754718638665,-500.0,0.00021773,2]
[378080322,1754718638675,-500.0,0.00021773,2]
[378080324,1754718638684,-500.0,0.00021773,2]
[378080326,1754718638694,-500.54898091,0.00021773,2]
[378080328,1754718638703,-500.0,0.00021773,2]
[378080330,1754718638712,-500.0,0.00021773,2]
[378080332,1754718638722,-252.4526827,0.00021773,2]
[378080334,1754718638731,-500.0,0.00021773,2]
[378080336,1754718638741,-500.0,0.00021773,2]
[378080338,1754718638750,-500.0,0.00021773,2]
[378080340,1754718638759,-500.0,0.00021773,2]
[378080342,1754718638769,-500.0,0.00021773,2]
[378080344,1754718638779,-500.0,0.00021773,2]
[378080346,1754718638788,-500.0,0.00021773,2]
[378080348,1754718638797,-501.34992136,0.00021773,2]
[378080350,1754718638807,-500.0,0.00021773,2]
[378080352,1754718638816,-500.0,0.00021773,2]
[378080354,1754718638826,-500.45646262,0.00021773,2]
[378080356,1754718638835,-500.0,0.00021773,2]
[378080358,1754718638845,-443.76120411,0.00021773,2]
[378080360,1754718638857,-500.0,0.00021773,2]
[378080362,1754718638871,-502.32319159,0.00021773,2]
[378080364,1754718638881,-500.0,0.00021773,2]
[378080366,1754718638891,-500.0,0.00021773,2]
[378080368,1754718638900,-500.0,0.00021773,2]
[378080370,1754718638909,-500.0,0.00021773,2]
[378080372,1754718638920,-500.0,0.00021773,2]
[378080374,1754718638934,-500.0,0.00021773,2]
[378080376,1754718638943,-500.0,0.00021773,2]
[378080378,1754718638960,-500.0,0.00021773,2]
[378080380,1754718638978,-500.0,0.00021773,2]
[378080382,1754718638993,-500.0,0.00021773,2]
[378080385,1754718639005,-160.0,0.00021869,2]
[378080386,1754718639015,-460.0,0.00021917,2]
[378080389,1754718639024,-460.67036297,0.00021917,2]
[378080390,1754718639034,-461.84235612,0.00021917,2]
[378080393,1754718639044,-461.92335684,0.00021917,2]
[378080394,1754718639054,-460.0,0.00021917,2]
[378080397,1754718639064,-460.0,0.00021917,2]
[378080399,1754718639073,-460.0,0.00021917,2]
[378080401,1754718639083,-373.45616691,0.00021917,2]
[378080403,1754718639093,-460.65878156,0.00021917,2]
[378080405,1754718639104,-461.13572071,0.00021917,2]
[378080407,1754718639113,-460.0,0.00021917,2]
[378080409,1754718639123,-461.61147124,0.00021917,2]
[378080411,1754718639133,-460.0,0.00021917,2]
[378080413,1754718639143,-461.00267252,0.00021917,2]
[378080415,1754718639153,-460.0,0.00021917,2]
[378080417,1754718639162,-474.7867492,0.00021917,2]
[378080419,1754718639172,-461.12968544,0.00021917,2]
[378080421,1754718639181,-461.08057795,0.00021917,2]
[378080423,1754718639191,-460.0,0.00021917,2]
[378080425,1754718639201,-460.0,0.00021917,2]
[378080427,1754718639210,-460.0,0.00021917,2]
[378080429,1754718639219,-460.93996279,0.00021917,2]
[378080431,1754718639229,-461.41691774,0.00021917,2]
[378080433,1754718639238,-460.0,0.00021917,2]
[378080435,1754718639248,-469.52708948,0.00021917,2]
[378080437,1754718639258,-462.02637834,0.00021917,2]
[378080439,1754718639267,-460.0,0.00021917,2]
[378080441,1754718639276,-460.0,0.00021917,2]
[378080443,1754718639285,-460.0,0.00021917,2]
[378080445,1754718639295,-460.0,0.00021917,2]
[378080447,1754718639305,-468.33853586,0.00021917,2]
[378080449,1754718639315,-460.0,0.00021917,2]
[378080451,1754718639324,-460.0,0.00021917,2]
[378080453,1754718639333,-460.0,0.00021917,2]
[378080455,1754718639343,-460.0,0.00021917,2]
[378080457,1754718639353,-460.0,0.00021917,2]
[378080459,1754718639363,-460.0,0.00021917,2]
[378080461,1754718639372,-460.0,0.00021917,2]
[378080463,1754718639382,-460.0,0.00021917,2]
[378080465,1754718639392,-462.19323194,0.00021917,2]
[378080467,1754718639401,-463.11492237,0.00021917,2]
[378080469,1754718639411,-460.0,0.00021917,2]
[378080471,1754718639420,-464.38351819,0.00021917,2]
[378080473,1754718639431,-462.26626987,0.00021917,2]
[378080475,1754718639441,-461.57819124,0.00021917,2]
[378080477,1754718639450,-467.08259879,0.00021917,2]
[378080479,1754718639460,-464.84702017,0.00021917,2]
[378080482,1754718639469,-460.0,0.00021917,2]
[378080483,1754718639479,-460.0,0.00021917,2]
[378080486,1754718639488,-460.0,0.00021917,2]
[378080488,1754718639498,-460.0,0.00021917,2]
[378080490,1754718639507,-460.0,0.00021917,2]
[378080492,1754718639517,-460.0,0.00021917,2]
[378080493,1754718639526,-460.0,0.00021917,2]
[378080496,1754718639537,-460.0,0.00021917,2]
[378080498,1754718639547,-460.0,0.00021917,2]
[378080500,1754718639557,-468.78271485,0.00021917,2]
[378080502,1754718639566,-460.0,0.00021917,2]
[378080503,1754718639576,-460.0,0.00021917,2]
[378080506,1754718639586,-460.0,0.00021917,2]
[378080507,1754718639595,-460.0,0.00021917,2]
[378080511,1754718639606,-460.0,0.00021917,2]
[378080514,1754718639615,-569.52602937,0.00021917,2]
[378080517,1754718639624,-462.010047,0.00021917,2]
[378080519,1754718639634,-460.0,0.00021917,2]
[378080521,1754718639643,-460.0,0.00021917,2]
[378080523,1754718639653,-460.0,0.00021917,2]
[378080525,1754718639662,-460.0,0.00021917,2]
[378080528,1754718639672,-460.0,0.00021917,2]
[378080531,1754718639681,-460.0,0.00021917,2]
[378080533,1754718639691,-460.0,0.00021917,2]
[378080535,1754718639700,-516.22658973,0.00021917,2]
[378080537,1754718639710,-460.0,0.00021917,2]
[378080539,1754718639721,-460.0,0.00021917,2]
[378080541,1754718639730,-460.0,0.00021917,2]
[378080543,1754718639740,-460.0,0.00021917,2]
[378080545,1754718639749,-460.0,0.00021917,2]